Cogmind - Beta 10.1 --- EXPLORER MODE // 2020.10.09 @ 16:42:22 Player: Luigi Panache Result: Core destroyed Performance ------------- Evolutions (5) 2500 Regions Visited (14) 2800 Robots Destroyed (238) 1190 Value Destroyed (8578) 8578 Prototype IDs (54) 1080 Alien Tech Used (0) 0 Bonus (708) 708 TOTAL SCORE: 16856 Bonus ------- High Alert Combat Kills 167 Follower Combat Kills 219 Aligned with FarCom 300 Met Data Miner 300 Friendly Fire -278 Cogmind --------- Core Integrity 0/1000 Matter 88/550 Energy 237/315 System Corruption 6% Temperature Cool (767) Movement Flying (357) Ox4 Location -5/Factory Parts ------- > --- POWER (2) -------- Neutrino Core > --- PROPULSION (3) --- Field Propulsion Drive Field Propulsion Drive Field Propulsion Drive > --- UTILITY (10) ----- High-capacity Storage Unit Matter Compressor Improved Signal Interpreter Precision Energy Filter Precision Energy Filter Precision Energy Filter Precision Energy Filter Transmission Jammer > --- WEAPON (3) ------- Improved Spread Laser KE Penetrator Antimatter Cannon > --- INVENTORY (12) --- Light Angular Momentum Engine Micro Fission Core Improved Heat Sink Large Storage Unit Maneuvering Thrusters Improved Recalibrator Tesla Rifle Faulty Improved Spread Laser Gauss Rifle Proton Missile Launcher Great Axe Peak State ------------ > --- POWER ------------ Neutrino Core > --- PROPULSION ------- Field Propulsion Drive Field Propulsion Drive Field Propulsion Drive > --- UTILITY ---------- High-capacity Storage Unit Matter Compressor Improved Signal Interpreter Precision Energy Filter Precision Energy Filter Precision Energy Filter Precision Energy Filter Transmission Jammer Utility Shielding > --- WEAPON ----------- Improved Spread Laser KE Penetrator Antimatter Cannon > --- INVENTORY -------- Light Angular Momentum Engine Micro Fission Core Improved Heat Sink Large Storage Unit Maneuvering Thrusters Improved Recalibrator Tesla Rifle Improved Spread Laser Gauss Rifle Proton Missile Launcher Great Axe [Rating: 85] Favorites ----------- Power Improved Deuterium Engine Engine Improved Deuterium Engine Power Core Nuclear Core Reactor Cold Fusion Reactor Propulsion Advanced Treads Treads Advanced Treads Leg Aluminum Leg Flight Unit Field Propulsion Drive Utility Large Storage Unit Device Improved Cooling System Storage Large Storage Unit Processor Improved Signal Interpreter Hackware Improved Hacking Suite Protection Hardened Light Armor Plating Weapon Small Laser Energy Gun Small Laser Energy Cannon YOLO Cannon Ballistic Gun Gauss Rifle Ballistic Cannon Heavy Flak Cannon Launcher Missile Launcher Impact Weapon Power Maul Slashing Weapon Great Axe Build | -11 -10 -10 -10 -9 -8 -8 -7 -7 -7 -6 -6 -6 -6 -5 ------- Run | Scr Mat Min Exi Min Mat Sto Fac Low Dat Pro Fac Was Fac Fac Slots Evolved 11 | . 1 . . . 4 . 2 . . . 2 . . 2 Power 1 | . . . . . . . 1 . . . . . . . Propulsion 1 | . . . . . 1 . . . . . . . . . Utility 8 | . 1 . . . 3 . 1 . . . 1 . . 2 Weapon 1 | . . . . . . . . . . . 1 . . . Parts Attached 189 | 8 10 5 1 . 39 13 26 . . 22 15 4 14 32 Power 16 | 1 . . . . 4 . 5 . . 1 1 . . 4 Engine 10 | 1 . . . . 1 . 5 . . 1 1 . . 1 Core 5 | . . . . . 3 . . . . . . . . 2 Reactor 1 | . . . . . . . . . . . . . . 1 Propulsion 34 | 2 2 2 . . 8 3 5 . . 5 1 . . 6 Treads 17 | . . . . . 8 3 5 . . 1 . . . . Leg 14 | 2 2 2 . . . . . . . 4 1 . . 3 Wheel . | . . . . . . . . . . . . . . . Hover . | . . . . . . . . . . . . . . . Flight 3 | . . . . . . . . . . . . . . 3 Utility 69 | 3 5 1 . . 13 . 3 . . 8 11 . 11 14 Device 33 | 2 1 . . . 8 . 1 . . 2 8 . 4 7 Storage 11 | 1 3 . . . 2 . . . . 2 . . . 3 Processor 7 | . 1 . . . . . . . . . 1 . 5 . Hackware 3 | . . . . . . . 1 . . 1 . . 1 . Protection 15 | . . 1 . . 3 . 1 . . 3 2 . 1 4 Artifact . | . . . . . . . . . . . . . . . Weapon 70 | 2 3 2 1 . 14 10 13 . . 8 2 4 3 8 Energy Gun 27 | 2 3 2 . . 9 3 2 . . 2 2 . . 2 Energy Cannon 17 | . . . 1 . 2 3 6 . . 4 . 1 . . Ballistic Gun 8 | . . . . . . 2 5 . . . . . . 1 Ballistic Cannon 4 | . . . . . . . . . . . . . 2 2 Launcher 11 | . . . . . 3 2 . . . 2 . 3 . 1 Special Weapon . | . . . . . . . . . . . . . . . Impact Weapon 2 | . . . . . . . . . . . . . 1 1 Slashing Weapon 1 | . . . . . . . . . . . . . . 1 Piercing Weapon . | . . . . . . . . . . . . . . . Special Melee Weapon . | . . . . . . . . . . . . . . . Unidentified Prototypes 13 | . . . 1 . 2 2 2 . . 2 . . 1 3 Parts Lost 41 | . 1 . . . 3 . . . . 16 3 6 3 9 Power 4 | . . . . . 1 . . . . 1 . 1 . 1 Propulsion 6 | . . . . . 1 . . . . 4 . . . 1 Utility 20 | . . . . . 1 . . . . 6 2 3 2 6 Weapon 11 | . 1 . . . . . . . . 5 1 2 1 1 Highest Loss Streak 8 | . 1 . . . 3 . . . . 8 3 6 2 6 Average Slot Usage (%) 90 | . 99 100 90 87 97 98 97 92 92 87 97 74 38 74 Engine 8 | . 12 12 12 12 4 . 10 14 14 13 12 9 . 1 Core 2 | . . . . . 3 8 2 . . . . . . 4 Treads 11 | . . . . . 22 25 20 21 21 11 . . . . Leg 7 | . 25 25 25 25 . . . . . 7 18 12 . 8 Device 13 | . 12 6 . . 15 16 14 14 14 13 24 22 12 17 Storage 18 | . 22 25 25 25 23 25 21 21 21 18 13 9 . 8 Processor 1 | . 1 . . . . . . . . . 1 4 19 5 Hackware 2 | . . . . . . . 6 7 7 6 4 . 3 . Protection 7 | . . 6 12 12 9 8 7 7 7 7 4 . . 8 Energy Gun 6 | . 24 25 7 . 11 8 2 . . 2 9 5 . 1 Energy Cannon 3 | . . . 8 12 3 4 3 7 7 4 7 2 . . Ballistic Gun 1 | . . . . . . . 6 . . . . . . 2 Naked Turns 44 | . . . . . . . . . . . . 44 . . Heaviest Build 115 | 16 56 58 72 72 98 98 115 115 115 115 111 115 11 107 Greatest Support 76 | 20 20 20 20 20 62 62 64 62 62 76 76 76 9 51 Greatest Overweight (x) 27 | 2 2 2 3 3 2 1 2 1 1 18 1 23 3 27 Average Overweight (x) 1 | . 1 2 2 3 1 1 1 1 1 1 1 . . 2 Largest Inventory Capacity 24 | 8 18 18 18 18 24 24 24 24 24 24 20 20 4 12 Average Capacity 18 | 7 16 18 18 18 22 24 24 24 24 20 20 16 4 8 Most Carried 24 | 8 18 18 18 18 24 24 24 24 24 24 20 20 4 12 Average Carried 18 | 5 13 17 18 18 22 23 23 24 24 18 19 16 3 7 Final Capacity 24 | 8 18 18 18 18 24 24 24 24 24 20 20 4 4 12 Final Carried 24 | 8 18 18 18 18 24 24 24 24 24 19 20 4 4 11 Class Distribution -------------------- 70% | Hacker-Mutant 12% | Hauler-Mutant 10% | Hacker-Skirmisher 5% | Hauler-Skirmisher Dominant Class ---------------- Hacker-Mutant | -10/Materials Hacker-Mutant | -10/Mines Hacker-Mutant | -10/Exiles Hacker-Mutant | -9/Mines Hauler-Mutant | -8/Materials Hauler-Mutant | -8/Storage Hacker-Mutant | -7/Factory Hacker-Mutant | -7/Lower Caves Hacker-Mutant | -7/Data Miner Hacker-Mutant | -6/Proximity Caves Hacker-Skirmisher | -6/Factory Hacker-Skirmisher | -6/Waste Hacker-Mutant | -6/Factory Hacker-Mutant | -5/Factory Resources | -11 -10 -10 -10 -9 -8 -8 -7 -7 -7 -6 -6 -6 -6 -5 ----------- Run | Scr Mat Min Exi Min Mat Sto Fac Low Dat Pro Fac Was Fac Fac Matter Collected 3679 | 243 116 56 . 20 543 257 771 . . 273 311 30 173 886 Remotely . | . . . . . . . . . . . . . . . Salvage Created 8501 | 84 231 154 . 34 1501 1046 2998 54 . 575 388 114 60 1262 Parts 422 | 8 20 6 . 2 69 59 152 . . 26 17 1 7 55 Haulers Intercepted 7 | . . . . . 2 3 1 . . . . . . 1 Recyclers Shooed 3 | . 1 . . . . . 1 . . . . . 1 . Parts Field Recycled . | . . . . . . . . . . . . . . . Retrieved Matter . | . . . . . . . . . . . . . . . Parts Self-Destructed . | . . . . . . . . . . . . . . . Prevented . | . . . . . . . . . . . . . . . Kills | -11 -10 -10 -10 -9 -8 -8 -7 -7 -7 -6 -6 -6 -6 -5 ------- Run | Scr Mat Min Exi Min Mat Sto Fac Low Dat Pro Fac Was Fac Fac Combat Hostiles Destroyed 164 | . 7 4 . 2 29 21 49 1 . 22 6 1 1 21 Melee 1 | . . . . . . . . . . . . . 1 . Guns 60 | . 6 4 . . 13 5 21 . . 2 1 . . 8 Cannons 49 | . . . . 1 7 6 15 . . 6 4 . . 10 AOE 53 | . 1 . . 1 8 10 13 1 . 14 1 1 . 3 Classes Destroyed 19 | 1 4 . . 1 4 5 . 1 . 1 . 2 . . Worker 14 | . 1 . . . 2 . 8 . . . . . . 3 Builder 11 | . . . . . . 3 4 . . . . . 1 3 Tunneler 5 | 4 . . . . . . 1 . . . . . . . Hauler 7 | . . . . . 2 3 1 . . . . . . 1 Recycler 13 | . . . . . 1 3 7 . . . . . . 2 Carrier 1 | . . . . . . 1 . . . . . . . . Operator 6 | . . . . . . 1 3 . . . 1 . . 1 Drone 1 | . . . . . . . . . . . . 1 . . Watcher 15 | . 2 . . . 5 1 6 . . . . . . 1 Swarmer 36 | . 3 . . . 5 4 11 . . 10 . . . 3 Grunt 80 | . 4 4 . 1 16 11 24 . . 8 4 . . 8 Brawler 2 | . . . . . . . . 1 . . 1 . . . Duelist 2 | . . . . 1 1 . . . . . . . . . Protector 1 | . . . . . . 1 . . . . . . . . Sentry 16 | . . . . . 5 4 4 . . 2 . . . 1 Hunter 9 | . . . . . 2 . 5 . . 1 . . . 1 Programmer 17 | . . . . . . 1 6 . . . 1 . 1 8 Behemoth 1 | . . . . . . . . . . 1 . . . . Compactor 1 | . . . . . . . . . . . . 1 . . Best Kill Streak 11 | 3 3 2 . 2 9 11 9 1 . 7 3 1 1 10 Combat Bots Only 7 | . 2 2 . 2 6 7 4 1 . 7 3 1 1 5 Max Kills in Single Turn 5 | 1 1 1 . 2 2 4 5 1 . 2 1 1 1 3 Gunslinging . | . . . . . . . . . . . . . . . Exploded 4 | . 1 . . 1 1 4 2 1 . 2 1 1 . 1 Melee 1 | . . . . . . . . . . . . . 1 . Uniques/NPCs Destroyed . | . . . . . . . . . . . . . . . Combat | -11 -10 -10 -10 -9 -8 -8 -7 -7 -7 -6 -6 -6 -6 -5 -------- Run | Scr Mat Min Exi Min Mat Sto Fac Low Dat Pro Fac Was Fac Fac Damage Taken 9230 | . 227 159 . . 735 684 1575 . . 1486 314 332 642 3076 Core 2337 | . 31 44 . . 113 81 123 . . 187 22 230 506 1000 Absorbed by Shields . | . . . . . . . . . . . . . . . Core Remaining (%) 52 | 100 . . . 70 . 64 . . . 16 . . 10 . Volleys Fired 416 | 5 25 11 . 2 78 40 130 3 . 34 20 5 . 63 Largest 3 | 2 2 2 . 1 2 2 2 1 . 2 3 3 . 3 Hottest 201 | 80 80 105 . 100 126 161 145 100 . 132 201 115 . 148 Shots Fired 735 | 10 45 22 . 2 135 71 205 3 . 48 42 13 . 139 Gun 416 | 10 45 22 . . 86 38 133 . . 6 23 . . 53 Cannon 248 | . . . . 2 33 26 72 3 . 19 19 . . 74 Launcher 71 | . . . . . 16 7 . . . 23 . 13 . 12 Special . | . . . . . . . . . . . . . . . Kinetic 235 | . . . . . . 10 105 . . . . . . 120 Thermal 325 | 10 45 22 . 2 76 52 70 3 . 15 23 . . 7 Explosive 59 | . . . . . 16 7 . . . 23 . 13 . . Electromagnetic 116 | . . . . . 43 2 30 . . 10 19 . . 12 Robot Hit Streak 45 | 5 12 19 . 21 45 35 29 8 . 14 16 19 . 41 Robot Miss Streak 5 | 1 2 1 . . 1 2 3 . . 1 1 . . 5 Penetration Max 1 | . . . . . . . 1 . . . . . . 1 Secondary Targets 5 | . 1 1 . . 1 . 2 . . . . . . . Max Gunslinging Chain 1 | . 1 1 . . 1 . 1 . . . . . . . Shots Hit Robots 554 | 6 33 21 . 2 111 34 165 1 . 32 28 10 3 108 Core Hits 476 | 4 16 10 . 2 69 55 149 1 . 53 14 4 14 85 Critical Hits 9 | . . . . . 1 1 3 1 . 1 . . . 2 Critical Kills 3 | . . . . . . 1 1 . . . . . . 1 Critical Parts Destroyed 5 | . . . . . . . 2 1 . 1 . . . 1 Melee Attacks 7 | . . . . . . . . . . . . . 3 4 Impact 3 | . . . . . . . . . . . . . 3 . Slashing 4 | . . . . . . . . . . . . . . 4 Piercing . | . . . . . . . . . . . . . . . Sneak Attacks . | . . . . . . . . . . . . . . . Combat Hostiles . | . . . . . . . . . . . . . . . Follow-up Attacks . | . . . . . . . . . . . . . . . Damage Inflicted 26406 | 67 520 286 . 427 3712 3332 8078 337 . 3331 670 1407 208 4031 Guns 6887 | 67 385 286 . . 1411 361 2693 . . 101 259 . . 1324 Cannons 7625 | . . . . 226 833 952 2546 138 . 890 337 . . 1703 Explosions 11651 | . 135 . . 201 1468 2019 2839 199 . 2340 74 1407 . 969 Melee 107 | . . . . . . . . . . . . . 107 . Ramming 136 | . . . . . . . . . . . . . 101 35 Kinetic 4947 | . . . . . . . 2079 . . . . . . 2868 Thermal 12630 | 67 385 286 . 427 1543 2086 5016 337 . 1632 333 . . 518 Explosive 5553 | . 135 . . . 1196 1205 52 . . 1558 . 1407 . . Electromagnetic 3033 | . . . . . 973 41 931 . . 141 337 . . 610 Impact 107 | . . . . . . . . . . . . . 107 . Slashing . | . . . . . . . . . . . . . . . Piercing . | . . . . . . . . . . . . . . . Highest Corruption 7 | . . . . . 1 2 2 2 2 2 5 5 7 6 Average Corruption 2 | . . . . . 1 1 1 2 2 2 3 5 6 5 Corruption Purged . | . . . . . . . . . . . . . . . Effects 93 | . . . . . 7 7 5 6 2 17 10 6 16 17 Message Errors 26 | . . . . . 3 1 1 4 . 5 . 2 5 5 Matter Fused 6 | . . . . . . . . . . . 2 1 2 1 Heat Flow Errors 10 | . . . . . . . 1 1 1 2 2 1 2 . Energy Discharges 18 | . . . . . 2 2 . 1 . 3 3 1 3 3 Parts Rejected 1 | . . . . . . . . . . . . . 1 . Data Loss (minor) 20 | . . . . . 1 3 . . 1 6 2 1 2 4 Data Loss (major) 4 | . . . . . . . . . . . . . 1 3 Misfires 1 | . . . . . . . . . . . 1 . . . Targeting Errors 7 | . . . . . 1 1 3 . . 1 . . . 1 Overload Shots . | . . . . . . . . . . . . . . . Overflow Damage 1213 | . 27 . . 13 112 309 581 22 . 61 . . . 88 Projectiles 820 | . . . . 11 34 191 456 . . 56 . . . 72 Explosions 393 | . 27 . . 2 78 118 125 22 . 5 . . . 16 Melee . | . . . . . . . . . . . . . . . Knockbacks 18 | . . . . . . . . . . . . . 1 17 Impact 1 | . . . . . . . . . . . . . 1 . Kinetic 17 | . . . . . . . . . . . . . . 17 Secondary . | . . . . . . . . . . . . . . . Self-Inflicted Damage 457 | . . . . . 45 33 80 . . 62 33 28 43 133 Shots 16 | . . . . . 2 1 3 . . 2 1 3 . 4 Rammed 28 | . . . . . . . . . . . . . 25 3 Targets Rammed 28 | . . . . . . . . . . . . . 25 3 Kicked . | . . . . . . . . . . . . . . . Crushed . | . . . . . . . . . . . . . . . Highest Temperature 975 | 6 144 360 . 40 159 . 113 193 220 216 447 174 242 975 Average Temperature 142 | 2 57 161 . 20 34 . 80 125 118 92 154 109 110 225 Received Heat Transfer 2817 | . 168 144 . . 423 414 468 . . 357 144 . 132 567 Effects 42 | . . 1 . . . . . . . . 3 . . 38 Shutdowns 8 | . . . . . . . . . . . . . . 8 Energy Bleed 4 | . . 1 . . . . . . . . . . . 3 Interference 7 | . . . . . . . . . . . 2 . . 5 Matter Decay 6 | . . . . . . . . . . . . . . 6 Short Circuit 3 | . . . . . . . . . . . . . . 3 Damage (minor) 3 | . . . . . . . . . . . 1 . . 2 Damage (major) 6 | . . . . . . . . . . . . . . 6 Damage (core) 5 | . . . . . . . . . . . . . . 5 Siege Activations . | . . . . . . . . . . . . . . . Robots Corrupted . | . . . . . . . . . . . . . . . Combat Hostiles . | . . . . . . . . . . . . . . . Parts Fried 15 | . . . . . 6 . 6 . . 2 . . . 1 Impact Corruptions . | . . . . . . . . . . . . . . . Robots Melted 1 | . . . . . 1 . . . . . . . . . Combat Hostiles 1 | . . . . . 1 . . . . . . . . . Parts Melted 24 | . 1 1 . . 5 3 9 1 . 3 1 . . . Heat Transferred 14868 | 150 875 657 . 400 2691 2447 4804 320 . 1668 481 . . 375 Parts Sabotaged . | . . . . . . . . . . . . . . . Parts Stolen . | . . . . . . . . . . . . . . . Parts Stripped . | . . . . . . . . . . . . . . . Power Chain Reactions 8 | . . . . . 3 . 2 . . 1 1 . . 1 Missiles Intercepted . | . . . . . . . . . . . . . . . Alert | -11 -10 -10 -10 -9 -8 -8 -7 -7 -7 -6 -6 -6 -6 -5 ------- Run | Scr Mat Min Exi Min Mat Sto Fac Low Dat Pro Fac Was Fac Fac Peak Influence 724 | 20 109 100 . 54 255 670 724 . . . 100 53 111 342 Initial 220 | . 9 13 . . 14 19 220 . . . . 7 16 5 Average 100 | 8 39 25 . 14 86 215 157 . . . 22 18 64 89 Maximum Alert Level 3 | . . . . . 1 2 3 . . . . . . 1 Low Security (%) 80 | 100 100 100 . 100 85 58 63 . . . 100 100 100 81 Level 1 15 | . . . . . 14 20 28 . . . . . . 18 Level 2 3 | . . . . . . 21 7 . . . . . . . Level 3 . | . . . . . . . . . . . . . . . Level 4 . | . . . . . . . . . . . . . . . Level 5 . | . . . . . . . . . . . . . . . High Security . | . . . . . . . . . . . . . . . Max Security . | . . . . . . . . . . . . . . . Squads Dispatched 49 | . 3 1 . . 3 4 24 . . . 3 . 4 7 Investigation 20 | . 3 1 . . 2 . 8 . . . 1 . 3 2 Extermination 11 | . . . . . . . 6 . . . 1 . 1 3 Reinforcement 9 | . . . . . 1 2 3 . . . 1 . . 2 Assault 2 | . . . . . . 1 1 . . . . . . . Garrison 7 | . . . . . . 1 6 . . . . . . . Intercept . | . . . . . . . . . . . . . . . Construction Impeded 2 | . . . . . . . 1 . . . . . . 1 Haulers Reinforced 1 | . . . . . . . . . . . . . . 1 Stealth | -11 -10 -10 -10 -9 -8 -8 -7 -7 -7 -6 -6 -6 -6 -5 --------- Run | Scr Mat Min Exi Min Mat Sto Fac Low Dat Pro Fac Was Fac Fac Distress Signals 8 | . 1 . . . 5 . 1 . . . . . . 1 Communications Jammed . | . . . . . . . . . . . . . . . Distress Signals . | . . . . . . . . . . . . . . . Times Spotted 249 | . 15 4 . 2 38 27 66 2 . 31 7 6 14 37 Peak Tracking Total 7 | . 5 2 . 2 4 6 4 1 . 7 3 4 7 7 Tactical Retreats 20 | . 1 . . . 3 3 3 2 . . . . 4 4 Traps | -11 -10 -10 -10 -9 -8 -8 -7 -7 -7 -6 -6 -6 -6 -5 ------- Run | Scr Mat Min Exi Min Mat Sto Fac Low Dat Pro Fac Was Fac Fac Traps Triggered 11 | . . . . . . 1 1 . . . 2 . 4 3 Indirectly . | . . . . . . . . . . . . . . . Trap Hack Attempts . | . . . . . . . . . . . . . . . Triggered . | . . . . . . . . . . . . . . . Disarmed 18 | . . . . . 4 . 14 . . . . . . . Reprogrammed . | . . . . . . . . . . . . . . . Reused . | . . . . . . . . . . . . . . . Traps Extracted . | . . . . . . . . . . . . . . . Installed . | . . . . . . . . . . . . . . . Triggered 1 | . . . . . . . . . . 1 . . . . Machines | -11 -10 -10 -10 -9 -8 -8 -7 -7 -7 -6 -6 -6 -6 -5 ---------- Run | Scr Mat Min Exi Min Mat Sto Fac Low Dat Pro Fac Was Fac Fac Machines Disabled 49 | . 2 . . 1 4 10 16 . . 2 1 . . 13 Max in Single Turn 5 | . 2 . . 1 1 2 3 . . 1 1 . . 5 Garrison Access 2 | . . . . . . 1 1 . . . . . . . Machines Sabotaged 1 | . 1 . . . . . . . . . . . . . Garrisons Compromised . | . . . . . . . . . . . . . . . Overloaded Fab Kills . | . . . . . . . . . . . . . . . Fab Network Shutdowns . | . . . . . . . . . . . . . . . Hacking | -11 -10 -10 -10 -9 -8 -8 -7 -7 -7 -6 -6 -6 -6 -5 --------- Run | Scr Mat Min Exi Min Mat Sto Fac Low Dat Pro Fac Was Fac Fac Machines Accessed 69 | . 8 1 5 . 8 10 20 . 4 1 4 . 4 4 Terminals 37 | . 7 . . . 5 7 9 . . 1 2 . 2 4 Fabricators 4 | . . . . . . . 4 . . . . . . . Repair Stations 5 | . . . . . 1 1 2 . . . . . 1 . Recycling Units 6 | . 1 . . . 1 1 2 . . . . . 1 . Scanalyzers 3 | . . . . . 1 . 1 . . . 1 . . . Garrison Access 4 | . . . . . . 1 2 . . . 1 . . . Total Hacks 270 | . 25 1 50 . 32 40 55 . 29 5 10 . 11 12 Successful 229 | . 21 1 50 . 28 30 46 . 29 5 5 . 6 8 Failed 41 | . 4 . . . 4 10 9 . . . 5 . 5 4 Catastrophic 5 | . . . . . 1 2 1 . . . . . . 1 Database Lockouts . | . . . . . . . . . . . . . . . Manual 118 | . 20 . 1 . 13 33 26 . 1 2 8 . 2 12 Terminals 133 | . 23 . . . 17 31 33 . . 5 7 . 5 12 Fabricators 9 | . . . . . . . 9 . . . . . . . Repair Stations 19 | . . . . . 9 2 5 . . . . . 3 . Recycling Units 15 | . 2 . . . 2 5 3 . . . . . 3 . Scanalyzers 9 | . . . . . 4 . 3 . . . 2 . . . Garrison Access 5 | . . . . . . 2 2 . . . 1 . . . Terminal Hacks 145 | . 10 1 50 . 11 12 18 . 29 4 2 . 2 6 Record 73 | . . . 49 . 3 . 5 . 11 4 . . 1 . Part Schematic 11 | . . . . . . 1 1 . 9 . . . . . Robot Schematic 6 | . . . . . . . . . 6 . . . . . Prototype ID Bank 6 | . 1 . . . . 2 . . 3 . . . . . Open Door 3 | . . 1 . . . 2 . . . . . . . . Branch Access Points 6 | . 1 . . . 2 1 1 . . . . . 1 . Terminal Index 6 | . 1 . . . 1 2 2 . . . . . . . Fabricator Index 2 | . . . . . . 1 . . . . 1 . . . Repair Station Index 2 | . . . . . 1 . 1 . . . . . . . Alert Level 1 | . 1 . . . . . . . . . . . . . Unreport Threat 7 | . 1 . . . 2 1 . . . . 1 . . 2 Locate Traps 3 | . 1 . . . 1 . 1 . . . . . . . Disarm Traps 4 | . . . . . 1 . 3 . . . . . . . Dispatch Records 1 | . . . . . . . 1 . . . . . . . Patrol Status 1 | . 1 . . . . . . . . . . . . . Recall Investigation 7 | . 3 . . . . . 2 . . . . . . 2 Recall Reinforcements 1 | . . . . . . 1 . . . . . . . . Recall Assault 2 | . . . . . . 1 1 . . . . . . . Registered Components 1 | . . . . . . . . . . . . . . 1 Registered Prototypes 1 | . . . . . . . . . . . . . . 1 EX-Prototype ID Bank 1 | . . . 1 . . . . . . . . . . . Fabricator Hacks 6 | . . . . . . . 6 . . . . . . . Load Schematic 2 | . . . . . . . 2 . . . . . . . Build 4 | . . . . . . . 4 . . . . . . . Repair Station Hacks 15 | . . . . . 8 2 4 . . . . . 1 . Scan Component 8 | . . . . . 4 1 2 . . . . . 1 . Repair 7 | . . . . . 4 1 2 . . . . . . . Recycling Unit Hacks 8 | . 1 . . . 1 1 3 . . . . . 2 . Report Inventory 6 | . 1 . . . 1 1 2 . . . . . 1 . Retrieve Matter 1 | . . . . . . . . . . . . . 1 . Retrieve Components 1 | . . . . . . . 1 . . . . . . . Scanalyzer 7 | . . . . . 4 . 3 . . . . . . . Insert Component 3 | . . . . . 2 . 1 . . . . . . . Analyze 4 | . . . . . 2 . 2 . . . . . . . Garrison Access Hacks . | . . . . . . . . . . . . . . . Unauthorized Hacks 48 | . 10 . . . 4 15 12 . . 1 3 . 1 2 Terminals 34 | . 9 . . . 2 9 8 . . 1 2 . 1 2 Track 2 | . 1 . . . . 1 . . . . . . . . Assimilate 1 | . . . . . . . 1 . . . . . . . Botnet 23 | . 3 . . . 2 5 7 . . 1 2 . 1 2 Detonate 2 | . 1 . . . . 1 . . . . . . . . Disrupt 2 | . 1 . . . . 1 . . . . . . . . Operators 1 | . . . . . . 1 . . . . . . . . Sabotage 2 | . 2 . . . . . . . . . . . . . Search 1 | . 1 . . . . . . . . . . . . . Fabricators 2 | . . . . . . . 2 . . . . . . . Prioritize 1 | . . . . . . . 1 . . . . . . . Siphon 1 | . . . . . . . 1 . . . . . . . Repair Stations 1 | . . . . . 1 . . . . . . . . . Mechanics 1 | . . . . . 1 . . . . . . . . . Recycling Units 6 | . 1 . . . 1 4 . . . . . . . . Monitor 1 | . . . . . . 1 . . . . . . . . Reject 1 | . . . . . . 1 . . . . . . . . Recyclers 3 | . 1 . . . 1 1 . . . . . . . . Mask 1 | . . . . . . 1 . . . . . . . . Scanalyzers . | . . . . . . . . . . . . . . . Garrison Access 5 | . . . . . . 2 2 . . . 1 . . . Restock 1 | . . . . . . 1 . . . . . . . . Reprogram 4 | . . . . . . 1 2 . . . 1 . . . Data Cores Recovered 2 | . . . . . . . 2 . . . . . . . Used . | . . . . . . . . . . . . . . . Hacking Detections 45 | . 5 . . . 5 7 17 . . 1 4 . 4 2 Full Trace Events 14 | . . . . . 3 . 7 . . . 1 . 2 1 Feedback Events 2 | . . . . . 1 . . . . . 1 . . . Corruption 2 | . . . . . 1 . . . . . 1 . . . Feedback Blocked . | . . . . . . . . . . . . . . . Robot Schematics Acquired 6 | . . . . . . . . . 6 . . . . . Robots Built . | . . . . . . . . . . . . . . . Matter . | . . . . . . . . . . . . . . . Time . | . . . . . . . . . . . . . . . Total Robot Build Rating . | . . . . . . . . . . . . . . . Part Schematics Acquired 13 | . . . . . 1 1 2 . 9 . . . . . Parts Built 5 | . . . . . . . 5 . . . . . . . Matter 504 | . . . . . . . 504 . . . . . . . Time 210 | . . . . . . . 210 . . . . . . . Total Part Build Rating 20 | . . . . . . . 20 . . . . . . . Parts Repaired 7 | . . . . . 4 1 2 . . . . . . . Time 238 | . . . . . 162 38 38 . . . . . . . Parts Recycled . | . . . . . . . . . . . . . . . Recycled Matter . | . . . . . . . . . . . . . . . Retrieved Matter . | . . . . . . . . . . . . . . . Retrieved Components 2 | . . . . . . . 2 . . . . . . . Parts Scanalyzed 2 | . . . . . 1 . 1 . . . . . . . Part Schematics Acquired 2 | . . . . . 1 . 1 . . . . . . . Parts Damaged . | . . . . . . . . . . . . . . . Bothacking | -11 -10 -10 -10 -9 -8 -8 -7 -7 -7 -6 -6 -6 -6 -5 ------------ Run | Scr Mat Min Exi Min Mat Sto Fac Low Dat Pro Fac Was Fac Fac Used RIF Installer . | . . . . . . . . . . . . . . . Robots Hacked . | . . . . . . . . . . . . . . . Non-combat . | . . . . . . . . . . . . . . . Combat . | . . . . . . . . . . . . . . . Robot Hacks Applied . | . . . . . . . . . . . . . . . Relay Couplers Released 7 | . . . . . . 4 3 . . . . . . . Machine Destruction 4 | . . . . . . 1 3 . . . . . . . Programmers 3 | . . . . . . 3 . . . . . . . . Robots Rewired . | . . . . . . . . . . . . . . . Allies Hacked . | . . . . . . . . . . . . . . . Hacks Repelled . | . . . . . . . . . . . . . . . Allies | -11 -10 -10 -10 -9 -8 -8 -7 -7 -7 -6 -6 -6 -6 -5 -------- Run | Scr Mat Min Exi Min Mat Sto Fac Low Dat Pro Fac Was Fac Fac Total Allies 5 | . . 2 . . . . 2 . . 1 . . . . Largest Group 2 | . . 2 . . . . 2 . . 1 . . . . Highest-Rated Group 94 | . . 42 . . . . 32 . . 94 . . . . Highest-Rated Ally 94 | . . 31 . . . . 16 . . 94 . . . . Total Orders 1 | . . . . . . . . . . . 1 . . . EXPLORE 1 | . . . . . . . . . . . 1 . . . Ally Attacks 36 | . . 5 . . . . 14 . . 17 . . . . Total Damage 882 | . . 65 . . . . 153 . . 664 . . . . Kills 7 | . . . . . . . . . . 7 . . . . Allies Corrupted . | . . . . . . . . . . . . . . . Allies Melted . | . . . . . . . . . . . . . . . Intel | -11 -10 -10 -10 -9 -8 -8 -7 -7 -7 -6 -6 -6 -6 -5 ------- Run | Scr Mat Min Exi Min Mat Sto Fac Low Dat Pro Fac Was Fac Fac Robot Analysis Total . | . . . . . . . . . . . . . . . Derelict Logs Recovered 3 | . . . . . . . . . . 3 . . . . Drone Launches 2 | . . . . . . . . . . . 2 . . . Drone Recoveries . | . . . . . . . . . . . . . . . Exploration | -11 -10 -10 -10 -9 -8 -8 -7 -7 -7 -6 -6 -6 -6 -5 ------------- Run | Scr Mat Min Exi Min Mat Sto Fac Low Dat Pro Fac Was Fac Fac Turns Passed 14215 | 114 1057 459 934 120 2122 702 3123 378 176 1727 646 251 448 1958 Spaces Moved 6997 | 66 564 230 467 54 837 270 1457 203 98 891 372 186 478 824 Core 666 | 8 . . . . . . . . . 6 . 80 478 94 Treads 3376 | . . . . . 837 270 1457 203 98 511 . . . . Legs 2908 | 58 564 230 467 54 . . . . . 374 372 106 . 683 Wheels . | . . . . . . . . . . . . . . . Hover . | . . . . . . . . . . . . . . . Flight 47 | . . . . . . . . . . . . . . 47 Fastest Speed 50 | 50 120 180 180 210 172 175 173 181 181 120 150 50 50 50 Average Speed 168 | 117 169 180 199 210 175 175 174 181 181 176 150 120 57 200 Slowest Speed 1400 | 150 180 180 210 210 200 178 197 181 181 950 150 1200 200 1400 Overloaded Moves . | . . . . . . . . . . . . . . . Propulsion Burnouts . | . . . . . . . . . . . . . . . Robots Hopped . | . . . . . . . . . . . . . . . Cave-ins Triggered . | . . . . . . . . . . . . . . . Exploration Rate (%) 48 | 3 88 38 91 21 68 55 45 34 71 86 13 72 18 17 Regions Visited 14 Branch Regions 7 Pre-discovered Areas 4 | . . . 1 . . . . . 1 2 . . . . Known Exits Taken 11 | 1 1 1 1 1 1 1 1 . 1 1 . . 1 . Unknown Exits Taken 1 | . . . . . . . . 1 . . . . . . Scrap Searched 1 | . . . . . . . . . . 1 . . . . Spaces Dug 78 | . . . . . . 56 2 . . 16 . . . 4 Terrain Destroyed 1163 | . 60 . . 22 92 157 312 57 . 245 . 114 . 104 Melee 4 | . . . . . . . . . . . . . . 4 Projectile 34 | . . . . . . 2 12 2 . 4 . . . 14 AOE 1125 | . 60 . . 22 92 155 300 55 . 241 . 114 . 86 Terrain Rammed . | . . . . . . . . . . . . . . . Walls Destroyed . | . . . . . . . . . . . . . . . Machines Disabled . | . . . . . . . . . . . . . . . Actions | -11 -10 -10 -10 -9 -8 -8 -7 -7 -7 -6 -6 -6 -6 -5 --------- Run | Scr Mat Min Exi Min Mat Sto Fac Low Dat Pro Fac Was Fac Fac Total 8553 | 90 623 257 469 55 1358 404 1784 205 97 964 422 199 643 983 Wait 708 | . 9 . . . 342 69 134 . . . 3 . 116 35 Move 6984 | 65 563 229 466 53 836 269 1456 202 97 890 372 185 477 824 Hop . | . . . . . . . . . . . . . . . Pick Up 95 | 10 10 4 . . 29 2 11 . . 16 3 2 . 8 Fast Attach 89 | 6 2 . 1 . 12 2 10 . . 7 9 2 12 26 Attach 37 | 2 2 . . . 11 2 4 . . 10 3 . 2 1 Detach 18 | 1 2 . . . 4 2 4 . . . 1 . 3 1 Swap 63 | . 6 5 . . 16 9 12 . . 5 3 2 . 5 Drop 101 | 1 4 8 2 . 30 7 23 . . 2 8 3 5 8 Fire 416 | 5 25 11 . 2 78 40 130 3 . 34 20 5 . 63 Melee 7 | . . . . . . . . . . . . . 3 4 Ram 25 | . . . . . . . . . . . . . 25 . Kick 3 | . . . . . . . . . . . . . . 3 Crush . | . . . . . . . . . . . . . . . Escape Stasis 7 | . . . . . . 2 . . . . . . . 5 Rewire . | . . . . . . . . . . . . . . . Trap . | . . . . . . . . . . . . . . . Miscellaneous . | . . . . . . . . . . . . . . . Route ------- -11/Scrapyard -10/Materials (discovered 4 exits: *Mat x3 / *Min) -10/Mines (discovered 2 exits: *Mat / *Exi) -10/Exiles (discovered 2 exits: *Min x2) -9/Mines -8/Materials (discovered 2 exits: *Fac / *Sto) -8/Storage (discovered 2 exits: *Fac / Rec) -7/Factory (discovered 2 exits: *Low x2) -7/Lower Caves -7/Data Miner -6/Proximity Caves -6/Factory -6/Waste -6/Factory (discovered 3 exits: *Fac / Low x2) -5/Factory History --------- Turn | Location | Event 14 | -11/Scrapyard | Identified exit to Materials 14 | -11/Scrapyard | Discovered exit to Materials (range 16) 115 | -11/Scrapyard | Entered Materials 115 | -10/Materials | Evolved 1 slot: Utility x1 254 | -10/Materials | Identified exit to Mines 287 | -10/Materials | Identified exit to Materials 287 | -10/Materials | Discovered exit to Materials (range 11) 305 | -10/Materials | Build established: Hacker-Mutant 788 | -10/Materials | Discovered exit to Materials (range 8) 1002 | -10/Materials | Discovered exit to Materials (range 9) 1172 | -10/Materials | Entered Mines 1255 | -10/Mines | Found a hidden stash of uninstalled traps 1279 | -10/Mines | Discovered exit to Materials (range 11) 1287 | -10/Mines | Met a Derelict shopkeep closing up shop 1624 | -10/Mines | Deemed a non-threat by the Exiles lab entrance 1624 | -10/Mines | Identified exit to Exiles 1624 | -10/Mines | Discovered exit to Exiles (range 5) 1631 | -10/Mines | Entered Exiles 1666 | -10/Exiles | Identified exit to Mines 1666 | -10/Exiles | Discovered exit to Mines (range 14) 1705 | -10/Exiles | Met 8R-AWN 1732 | -10/Exiles | Met EX-HEX 1795 | -10/Exiles | Met EX-BIN 1840 | -10/Exiles | Aligned with FarCom system 1842 | -10/Exiles | Given EX-Vault access code 1905 | -10/Exiles | Opened EX-Vault 1915 | -10/Exiles | Found Prototype Energy Cannon 1915 | -10/Exiles | Identified YOLO Cannon 2017 | -10/Exiles | Warned to stay clear of 0b10 Research branches 2072 | -10/Exiles | Met EX-DEC 2085 | -10/Exiles | Learned location of Zion (-6) 2201 | -10/Exiles | Visited The Gauntlet 2540 | -10/Exiles | Discovered exit to Mines (range 14) 2565 | -10/Exiles | Left Exiles lab with YOLO Cannon 2565 | -10/Exiles | Entered Mines 2645 | -9/Mines | Identified exit to Materials 2645 | -9/Mines | Discovered exit to Materials (range 15) 2685 | -9/Mines | Entered Materials 2685 | -8/Materials | Evolved 4 slots: Propulsion x1, Utility x3 2882 | -8/Materials | Identified exit to Storage 2991 | -8/Materials | Build established: Hacker-Skirmisher 3695 | -8/Materials | Build established: Hauler-Skirmisher 3987 | -8/Materials | Identified exit to Factory 3987 | -8/Materials | Discovered exit to Factory (range 10) 4030 | -8/Materials | Lost 3 parts (1p1n1u) 4262 | -8/Materials | Repaired Lgt. Armor Plating 4289 | -8/Materials | Build established: Hauler-Mutant 4301 | -8/Materials | Repaired Imp. Heat Sink 4341 | -8/Materials | Repaired Adv. Treads 4525 | -8/Materials | Repaired Adv. Beam Rifle 4807 | -8/Materials | Entered Storage 4906 | -8/Storage | Identified exit to Recycling 5240 | -8/Storage | Repaired EM Pulse Cannon 5278 | -8/Storage | Garrison activated, responded to threat 5329 | -8/Storage | Destroyed 7 combat bots 5477 | -8/Storage | Discovered exit to Factory (range 16) 5509 | -8/Storage | Entered Factory 5509 | -7/Factory | Evolved 2 slots: Power x1, Utility x1 5861 | -7/Factory | Build established: Hacker-Mutant 5936 | -7/Factory | Repaired Arm. Treads 6828 | -7/Factory | Fabricated Imp. Deuterium Engine (x2) 7414 | -7/Factory | Identified exit to Lower Caves 7420 | -7/Factory | Fabricated Enh. Optical Array? 7427 | -7/Factory | Garrison activated, responded to threat 7607 | -7/Factory | Fabricated Matter Filter (x2) 8213 | -7/Factory | Garrison activated, responded to threat 8325 | -7/Factory | Repaired Arm. Treads 8632 | -7/Factory | Entered Lower Caves 8991 | -7/Lower Caves | A Derelict revealed a hidden shortcut to meet someone special 9010 | -7/Lower Caves | Entered Data Miner 9010 | -7/Data Miner | Identified exit to Proximity Caves 9010 | -7/Data Miner | Discovered exit to Proximity Caves (range 6) 9045 | -7/Data Miner | Met Data Miner 9083 | -7/Data Miner | Learned location of Section 7 (-2) 9083 | -7/Data Miner | Acquired the access code to Warlord's prototype stash 9119 | -7/Data Miner | Received God Mode back door access code from Data Miner 9186 | -7/Data Miner | Entered Proximity Caves 9217 | -6/Proximity Caves | Escorted by Enhanced Grunt 9217 | -6/Proximity Caves | Attracted the attention of an 0b10 checkpoint 9632 | -6/Proximity Caves | Learned Factory terminal intel 9988 | -6/Proximity Caves | Spotted B-75 Beast 10002 | -6/Proximity Caves | Core integrity fell below 50% 10055 | -6/Proximity Caves | Lost 8 parts (2n4u2w) 10183 | -6/Proximity Caves | Destroyed B-75 Beast 10757 | -6/Proximity Caves | Attracted the attention of an 0b10 base 10768 | -6/Proximity Caves | Core integrity fell below 20% 10797 | -6/Proximity Caves | Destroyed 7 combat bots 10798 | -6/Proximity Caves | Lost 3 parts (1u2w) 10810 | -6/Proximity Caves | Learned location of 1 exit from Factory 10810 | -6/Proximity Caves | Learned Factory stockpile data 10810 | -6/Proximity Caves | Learned Research stockpile data 10906 | -6/Proximity Caves | Identified exit to Factory 10906 | -6/Proximity Caves | Discovered exit to Factory (range 5) 10913 | -6/Proximity Caves | Entered Factory 10913 | -6/Factory | Evolved 2 slots: Utility x1, Weapon x1 10914 | -6/Factory | Identified exit to Factory 10916 | -6/Factory | Loaded intel: 20 terminal locations 11106 | -6/Factory | Lost 3 parts (2u1w) 11360 | -6/Factory | Build established: Hacker-Skirmisher 11559 | -6/Factory | Sucked down chute 11559 | -6/Factory | Entered Waste 11559 | -6/Waste | Met up with 1 ally sucked down the chute earlier 11652 | -6/Waste | Spotted C-40 Crusher 11703 | -6/Waste | Spotted C-40 Crusher 11712 | -6/Waste | Destroyed C-40 Crusher 11719 | -6/Waste | Spotted C-40 Crusher 11721 | -6/Waste | Crushed by Compactor (1 part destroyed, 2 dropped) 11724 | -6/Waste | Spotted C-40 Crusher 11740 | -6/Waste | Crushed by Compactor (1 part destroyed, 2 dropped) 11743 | -6/Waste | Crushed by Compactor (1 part destroyed, 1 dropped) 11750 | -6/Waste | Crushed by Compactor (1 part destroyed, 2 dropped) 11752 | -6/Waste | Crushed by Compactor (1 part destroyed, 2 dropped) 11755 | -6/Waste | Crushed by Compactor (1 part destroyed, 1 dropped) 11769 | -6/Waste | Spotted C-40 Crusher 11785 | -6/Waste | Spotted C-40 Crusher 11786 | -6/Waste | Lost 6 parts (1p3u2w) 11789 | -6/Waste | Identified exit to Factory 11789 | -6/Waste | Discovered exit to Factory (range 16) 11810 | -6/Waste | Entered Factory 11850 | -6/Factory | Incoming investigation squad redirected 11892 | -6/Factory | Core integrity fell below 50% 12018 | -6/Factory | Incoming investigation squad redirected 12050 | -6/Factory | Build established: Hacker-Mutant 12225 | -6/Factory | Identified exit to Lower Caves 12242 | -6/Factory | Core integrity fell below 20% 12252 | -6/Factory | Discovered exit to Factory (range 11) 12258 | -6/Factory | Entered another Factory area 12258 | -5/Factory | Evolved 2 slots: Utility x2 13462 | -5/Factory | Incoming investigation squad redirected 13602 | -5/Factory | Lost 6 parts (1n4u1w) 14140 | -5/Factory | Build established: Hacker-Skirmisher 14203 | -5/Factory | Core integrity fell below 50% 14216 | -5/Factory | Core integrity fell below 20% 14217 | -5/Factory | Core destroyed Last Messages --------------- 14202_ U-05 Engineer builds a Wall. 14202_ Acquired 19 matter. 14203_ Overheating: Core damaged (-100). 14204_ Overheating: Matter decay (-11). 14205_ Overheating: Broken Field Propulsion Drive damaged (-4). 14205_ Overheating: Prc. Energy Filter damaged (-9). 14205_ Overheating: Prc. Energy Filter damaged (-23). 14205_ Overheating: Neutrino Core damaged (-7). 14206_ Overheating: Core damaged (-180). 14207_ Power failure, Neutrino Core shutdown. 14208_ Prc. Energy Filter permanently disabled. 14208_ Overheating: Short circuit. 14210_ Overheating: Prc. Energy Filter damaged (-36). 14210_ Overheating: Broken Field Propulsion Drive damaged (-1). 14213_ Overheating: System interference. 14213_ Prc. Energy Filter temporarily disabled. 14214_ System corrupted: Component data lost. 14216_ Power failure, Neutrino Core shutdown. 14216_ Overheating: Core damaged (-140). 14217_ Overheating: Core damaged (-120). Map ----- +----------------------------------------------------+ | ##############??????????????????????????????????? | | # ##?????????????????????????????????? | | + * " "" #?????????????????????????????????? | | # *! "S"" #??????????????????????????????????? | | #! *! """ #??????????????????????????????????? | | # [ #??????????????????????????????????? | | #######+######??????????????????????????????????? | | ####### #???????????????????????????????????????? | | #???????????????????????????????????????? | | % #???????????????????????????????????????? | | ##??????????????????????????????????????? | | #??????????????????????????????????????? | | #??????????????????????????????????????? | | #??????????????????????????????????????? | | % %% #??????????????????????????????????????? | | ######! %#??????????????????????????????????????? | | ???? # % %############ #?????????????????????????? | | ???" #^ #???????????????????w?????? | | ??"" # #?# ??????????????????????????? | | ??"" # """ #?# ??????????????????????????? | | ??? #^ " """ #?# ????Y?????????????????????? | | ?? ?# "F "%" ###+######????????????????????? | | ?##### "" %% # #????????????????????? | | "" # #????????????????????? | | ?##### # #????????????????????? | | ?????# % # @ #????????????????????? | | ?????###########+#######+####????????????????????? | | ???????# ! % ##??????????????????????? | | ???????# ##??????????????????????? | | ???????# """""" ##??????????????????????? | | ???????# """""" #???????????????????????? | | ?????????"""""" #???????????????????????? | | ?????????"""""" #???????????????????????? | | ???????# #???????????????Y???????? | | ???????###################???Y???????????????????? | | ?????????????????????????????????????????????????? | | ?????????????????????????????????????????????????? | | ?????????????????????????????????????????????????? | | ?????????????????????????????????????????????????? | | ?????????????????????????????????????????????????? | | ?????????????????????????????????????????????????? | | ?????????????????????????????????????????????????? | | ?????????????????????????????????????????????????? | | ?????????????????????????????????????????????????? | | ???????????????????????g?????????????????????????? | | ?????????????????????????????????????????????????? | | ?????????????????????????????????????????????????? | | ?????????????????????????????????????????????????? | | ?????????????????????????????????????????????????? | | ?????????????????????????????????????????????????? | +----------------------------------------------------+ Best States ------------- Heat Dissipation 88 Energy Generation 36 Energy Capacity 1100 Matter Stores 300 Matter Capacity 550 Sight Range 16 Robot Scan Range 16 Terrain Scan Range 20 Terrain Scan Density 210 Jamming Range 8 Power Amplification 20 Additional Mass Support 6 Armor Coverage 450 Resistance: KI 55 Resistance: TH 35 Resistance: EX 35 Resistance: EM 60 Resistance: I 35 Resistance: S 35 Resistance: P 35 Core Shielding 30 Utility Shielding 66 Weapon Shielding 33 Phase Shifting 5 Evasion (%) 50 Recoil Reduction 3 Energy Filtering 50 Offensive Hacking 32 Item Schematics ----------------- Imp. Terrain Scanner | -8/Materials | Scanalyzed Imp. Salvage Targeting Computer | -8/Storage | Hacked Imp. Deuterium Engine | -7/Factory | Hacked Adv. Treads | -7/Factory | Scanalyzed Combat Drone Bay | -7/Data Miner | Free Lgt. Regenerative Plating | -7/Data Miner | Free Cmb. Gravmag System | -7/Data Miner | Free Exp. Terrain Scan Processor | -7/Data Miner | Free Tactical Coordination Suite | -7/Data Miner | Free Exp. Transmission Jammer | -7/Data Miner | Free Exp. ECM Suite | -7/Data Miner | Free Mni. Smartbomb Launcher | -7/Data Miner | Free Kinetic Spear | -7/Data Miner | Free Robot Schematics ------------------ S-27 Virus | -7/Data Miner | Free G-50 Soldier | -7/Data Miner | Free G-67 Veteran | -7/Data Miner | Free X-72 Disruptor | -7/Data Miner | Free H-66 Slayer | -7/Data Miner | Free I-36 Angel | -7/Data Miner | Free Fabricated ------------ Imp. Deuterium Engine | x2 | -7/Factory Enh. Optical Array | x1 | -7/Factory | Preloaded Matter Filter | x2 | -7/Factory | Preloaded Alien Tech Used ----------------- None Achievements -------------- Brute Force Quantum Hacking The Oracle Challenges ------------ None Game ------ Seed MolecularFluxClaws Manual? 0 Play Time 02:15:11 Cumulative 30.3 hours Start 2020.10.09 @ 11:03:21 End 2020.10.09 @ 16:42:22 Sessions 3 Manual Loads 0 Difficulty Explorer Special Mode None Game No. 23 Rogue 2 Adventurer 11 Explorer 10 Win Type - Total 1 Types 1/0/0/0/0/0/0/0/0 Lore% 23 Gallery% 39 Achievement% 30 Wizard Run 0 Options --------- ASCII 0 Keyboard 0 Movement Mouse Keybinds 0 Fullscreen 1 Font 18/Terminus Map View 76x50 Tactical HUD 1 Map Filters NONE Filters NONE Steam 1 RUN: c45f72e3-f058-482a-b19a-1601fc5f0396